Cogmind - Beta 16 @@@ ROGUE MODE // 2025.12.28 @ 07:08:06 Player: naththebg Result: Destroyed by AP7-3 with Heavy Quantum Rifle Performance ------------- Evolutions (8) 4000 Regions Visited (19) 3800 Robots Destroyed (67) 335 Value Destroyed (2065) 2065 Prototype IDs (86) 1720 Alien Tech Used (4) 800 Bonus (3924) 3924 TOTAL SCORE: 16644 Bonus ------- Follower Combat Kills 124 Registered with UFD 300 Met Optimus in HQ 500 Used Core Reset Matrix 3000 Cogmind --------- Core Integrity 0/1450 Matter 199/300 Energy 98/100 System Corruption 8% Temperature Cool (9) Movement Core (50) Location -2/Protoforge Parts ------- > --- POWER (2) -------- (None) > --- PROPULSION (6) --- (None) > --- UTILITY (11) ----- Spectral Analyzer Experimental Signal Interpreter > --- WEAPON (4) ------- (None) > --- INVENTORY (5) ---- Core Cannon Sigix Broadsword Peak State ------------ > --- POWER ------------ Zero-point Reactor Matter Drive > --- PROPULSION ------- Improved Antigrav System Improved Antigrav System Antigrav Array Combat Linear Gravjet Combat Linear Gravjet > --- UTILITY ---------- 2N-1CE's Frost Array Large Storage Unit Spectral Analyzer Long-range Sensor Array Experimental Signal Interpreter A0-MCA's Component Scanner > --- WEAPON ----------- Heavy Phase Cannon Hypervelocity Multirail Sigix Broadsword > --- INVENTORY -------- Stasis Canceller Gun Armor SHELL Armor Advanced Remote Force Field Power Bank Transdimensional Reconstructor Improved Potential Cannon Core Cannon Micro-nuke Launcher Core Stripper [Rating: 179] Favorites ----------- Power Improved Deuterium Engine Engine Improved Deuterium Engine Power Core Light Fission Core Reactor Micro Antimatter Reactor Propulsion Combat Linear Gravjet Treads Light Treads Leg Aluminum Leg Wheel Subdweller Monowheel Hover Unit Combat Linear Gravjet Utility Large Storage Unit Device Cloaking Device Storage Large Storage Unit Processor A0-MCA's Component Scanner Hackware Advanced System Shield Protection Improved Medium Armor Plating Weapon Subdweller Machine Gun Energy Gun Riot Gun Energy Cannon Subdweller Beam Cannon Ballistic Gun Subdweller Machine Gun Ballistic Cannon Hypervelocity Gauss Cannon Launcher Subdweller Shrapnel Launcher Special Weapon Improved Remote Datajack Slashing Weapon Chainsword Special Melee Weapon Dirty Datajack Build | -11 -10 -10 -7 -7 -5 -5 -5 -5 -5 -4 -4 -4 -4 -4 -3 -3 -2 -2 -2 ------- Run | Yrd Mat Sub Rec Scr Fac Was Fac Upp Upp Fac Was Fac Upp Upp Res Tes Res Qua Frg Slots Evolved 16 | . . . . . 10 . . . . 2 . . . . 2 . 2 . . Power 1 | . . . . . 1 . . . . . . . . . . . . . . Propulsion 4 | . . . . . 3 . . . . . . . . . 1 . . . . Utility 9 | . . . . . 6 . . . . 2 . . . . 1 . . . . Weapon 2 | . . . . . . . . . . . . . . . . . 2 . . Parts Attached 118 | 7 4 38 7 6 18 . 4 1 . 7 . 2 4 . 12 3 1 4 . Power 19 | 1 . 7 1 . 1 . 1 . . . . . 2 . 3 . 1 2 . Engine 11 | 1 . 7 1 . . . 1 . . . . . 1 . . . . . . Core 2 | . . . . . 1 . . . . . . . 1 . . . . . . Reactor 6 | . . . . . . . . . . . . . . . 3 . 1 2 . Propulsion 27 | 2 2 12 . 1 4 . . . . . . 1 1 . 4 . . . . Treads 2 | . 2 . . . . . . . . . . . . . . . . . . Leg 2 | 2 . . . . . . . . . . . . . . . . . . . Wheel 12 | . . 12 . . . . . . . . . . . . . . . . . Hover 11 | . . . . 1 4 . . . . . . 1 1 . 4 . . . . Flight . | . . . . . . . . . . . . . . . . . . . . Utility 34 | 1 2 4 2 2 10 . 1 1 . 6 . 1 . . 3 1 . . . Device 11 | . . 1 . 1 2 . . 1 . 4 . . . . 1 1 . . . Storage 3 | 1 1 . . 1 . . . . . . . . . . . . . . . Processor 7 | . . . . . 4 . . . . 1 . 1 . . 1 . . . . Hackware 5 | . . . . . 3 . 1 . . . . . . . 1 . . . . Protection 8 | . 1 3 2 . 1 . . . . 1 . . . . . . . . . Artifact . | . . . . . . . . . . . . . . . . . . . . Weapon 38 | 3 . 15 4 3 3 . 2 . . 1 . . 1 . 2 2 . 2 . Energy Gun 8 | 1 . 5 . . 1 . . . . . . . . . . . . 1 . Energy Cannon 8 | . . 2 4 . . . 1 . . . . . . . 1 . . . . Ballistic Gun 12 | 2 . 7 . 1 1 . . . . . . . . . . 1 . . . Ballistic Cannon 1 | . . . . . 1 . . . . . . . . . . . . . . Launcher 2 | . . 1 . . . . . . . 1 . . . . . . . . . Special Weapon 3 | . . . . 1 . . . . . . . . 1 . 1 . . . . Impact Weapon . | . . . . . . . . . . . . . . . . . . . . Slashing Weapon 3 | . . . . . . . 1 . . . . . . . . 1 . 1 . Piercing Weapon . | . . . . . . . . . . . . . . . . . . . . Special Melee Weapon 1 | . . . . 1 . . . . . . . . . . . . . . . Unidentified Prototypes 2 | . . . . . . . . . . . . . . . . . . 2 . Parts Lost 27 | . . 7 . . . . . . . . . 3 . . 1 4 3 2 7 Power 3 | . . 2 . . . . . . . . . 1 . . . . . . . Propulsion 11 | . . 3 . . . . . . . . . 2 . . . . 1 1 4 Utility 12 | . . 2 . . . . . . . . . . . . 1 3 2 1 3 Weapon 1 | . . . . . . . . . . . . . . . . 1 . . . Highest Loss Streak 6 | . . 4 . . . . . . . . . 3 . . 1 4 3 2 6 To Critical Strikes . | . . . . . . . . . . . . . . . . . . . . Average Backups 13 | 3 7 13 13 14 10 15 14 14 14 14 15 14 14 15 14 12 11 10 8 Power . | . 1 1 . . . . . . . . . . 1 2 1 . . . . Propulsion 1 | 2 2 2 2 2 1 1 1 1 1 1 1 . . . . 1 1 . . Utility 6 | . 2 4 4 7 5 9 8 8 8 8 9 9 8 8 7 6 5 5 3 Weapon 3 | . . 5 4 1 2 4 4 3 3 3 3 2 3 3 2 2 2 3 3 Tool/Special . | . . . . . . . . . . . . . . . . . . . . Unused Backups 32 | . 2 4 . 5 1 . 1 2 . 2 . 1 1 . . 3 . 3 7 Power . | . . . . . . . . . . . . . . . . . . . . Propulsion 6 | . 2 1 . 2 . . . . . . . . . . . . . 1 . Utility 16 | . . 2 . 3 . . 1 2 . . . . 1 . . 3 . . 4 Weapon 8 | . . 1 . . 1 . . . . 2 . . . . . . . 2 2 Tool/Special 2 | . . . . . . . . . . . . 1 . . . . . . 1 Average Slot Usage (%) 90 | . 90 97 98 86 90 94 98 100 100 89 89 87 92 94 89 86 71 69 38 Engine 8 | . 14 13 14 13 5 5 5 5 5 5 5 4 . . . . . . . Core 1 | . . . . . 4 5 5 5 5 5 5 5 9 10 4 . . . . Reactor 1 | . . . . . . . . . . . . . . . 3 9 8 8 4 Treads 2 | . 9 6 . . . . . . . . . . . . . . . . . Wheel 12 | . . 20 28 26 . . . . . . . . . . . . . . . Hover 11 | . . . . 1 25 29 29 29 29 26 26 25 25 26 23 23 20 20 10 Device 7 | . . 2 . 1 11 17 16 17 17 15 15 15 15 15 15 19 14 7 3 Storage 9 | . 14 14 14 14 5 5 5 5 5 5 5 5 5 5 4 4 4 4 3 Processor 6 | . . . . . 10 17 17 17 17 15 15 15 15 15 14 14 13 13 11 Hackware 1 | . . . . . 5 5 5 5 5 5 5 5 5 5 4 . . . . Protection 7 | . 5 10 14 12 7 . . . . 5 5 5 5 5 6 8 . . . Energy Gun 2 | . 14 5 3 . . . . . . . . . . . . . . 2 . Energy Cannon 4 | . . 6 23 . . . 3 . . . . . . . 1 . 3 3 . Ballistic Gun 6 | . 14 15 . 9 6 . . . . . . . . . . . 1 2 . Slashing Weapon 1 | . . . . . . . 4 5 5 5 5 5 5 5 4 4 4 5 3 Peak Build Rating 179 | 6 9 21 25 27 91 87 94 97 95 110 105 110 118 118 149 159 153 179 158 Average Rating 59 | 3 7 15 22 21 77 87 91 95 95 104 105 104 117 118 136 145 145 163 99 On Entrance 82 | . 6 9 20 17 27 87 87 94 95 95 105 105 100 118 118 146 133 135 153 Avg Prop Armor Cover (%) 4 | . . 5 3 4 . . . . . . . . . . . . . . . Naked Turns . | . . . . . . . . . . . . . . . . . . . . Heaviest Build 83 | 14 36 44 53 45 58 50 53 55 53 68 58 58 57 57 77 78 71 83 66 Greatest Support 84 | 20 40 40 30 10 55 55 58 58 58 58 58 58 60 60 80 82 82 84 66 Greatest Overweight (x) 5 | . . 3 5 4 1 . . . . 1 . . . . 1 . . . 3 Average Overweight (x) . | . . . 3 3 . . . . . . . . . . . . . . . Largest Inventory Capacity 15 | 8 15 15 15 15 15 15 15 15 15 15 15 15 15 15 15 15 15 15 15 Average Capacity 14 | 6 9 15 15 15 15 15 15 15 15 15 15 15 15 15 15 15 15 15 12 Most Carried 15 | 6 8 15 15 15 15 15 15 15 15 15 15 15 15 15 15 15 15 15 15 Average Carried 14 | 4 7 14 14 14 10 15 14 14 15 14 15 14 14 15 14 14 14 14 11 Final Capacity 15 | 8 15 15 15 15 15 15 15 15 15 15 15 15 15 15 15 15 15 15 5 Final Carried 15 | 6 8 15 15 15 15 15 15 15 15 15 15 14 15 15 15 15 15 14 4 Class Distribution -------------------- 23% | Commander-Mutant 23% | Mutant 23% | Scientist-Ninja 12% | Scavenger-Mutant 10% | Ninja Dominant Class ---------------- Mutant | -10/Materials Mutant | -10/Subcaves Commander-Mutant | -7/Recycling Commander-Mutant | -7/Scraptown Mutant | -5/Factory Scout | -5/Waste Ninja | -5/Factory Scientist-Ninja | -5/Upper Caves Scientist-Ninja | -5/Upper Caves Scientist-Ninja | -4/Factory Scientist-Ninja | -4/Waste Scientist-Ninja | -4/Factory Ninja | -4/Upper Caves Ninja | -4/Upper Caves Scientist-Ninja | -3/Research Scientist-Ninja | -3/Testing Scientist-Ninja | -2/Research Scientist-Scout | -2/Quarantine Mutant | -2/Protoforge Resources | -11 -10 -10 -7 -7 -5 -5 -5 -5 -5 -4 -4 -4 -4 -4 -3 -3 -2 -2 -2 ----------- Run | Yrd Mat Sub Rec Scr Fac Was Fac Upp Upp Fac Was Fac Upp Upp Res Tes Res Qua Frg Matter Collected 2603 | 212 134 986 113 36 . . 385 72 20 95 . 46 126 18 . 360 . . . Remotely . | . . . . . . . . . . . . . . . . . . . . Salvage Created 3193 | . 166 1093 390 . . . 476 . . 184 . 46 524 . 103 211 . . . Parts 144 | . 14 88 10 . . . 12 . . 5 . 2 5 . 4 4 . . . Haulers Intercepted . | . . . . . . . . . . . . . . . . . . . . Recyclers Shooed 3 | . 2 . 1 . . . . . . . . . . . . . . . . Parts Field Recycled . | . . . . . . . . . . . . . . . . . . . . Retrieved Matter . | . . . . . . . . . . . . . . . . . . . . Parts Self-Destructed 3 | . . 3 . . . . . . . . . . . . . . . . . Prevented . | . . . . . . . . . . . . . . . . . . . . Parts Restored . | . . . . . . . . . . . . . . . . . . . . Kills | -11 -10 -10 -7 -7 -5 -5 -5 -5 -5 -4 -4 -4 -4 -4 -3 -3 -2 -2 -2 ------- Run | Yrd Mat Sub Rec Scr Fac Was Fac Upp Upp Fac Was Fac Upp Upp Res Tes Res Qua Frg Combat Hostiles Destroyed 46 | . 8 33 4 . . . . . . . . . . . 1 . . . . Guns 26 | . 8 18 . . . . . . . . . . . . . . . . . Cannons 9 | . . 4 4 . . . . . . . . . . . 1 . . . . AOE 11 | . . 11 . . . . . . . . . . . . . . . . . Classes Destroyed 15 | . 4 3 4 . . . 2 . . 1 . . . . . 1 . . . Worker 5 | . 1 . . . . . . . . 2 . 1 . . . 1 . . . Builder 1 | . . . . . . . . . . 1 . . . . . . . . . Tunneler 2 | . . . . . . . 1 . . . . 1 . . . . . . . Recycler 7 | . . . 2 . . . 3 . . 1 . . . . . 1 . . . Operator 1 | . 1 . . . . . . . . . . . . . . . . . . Turret 2 | . . 2 . . . . . . . . . . . . . . . . . Watcher 2 | . . . . . . . 1 . . . . . . . 1 . . . . Swarmer 13 | . 6 7 . . . . . . . . . . . . . . . . . Grunt 3 | . 2 . 1 . . . . . . . . . . . . . . . . Duelist 1 | . . . 1 . . . . . . . . . . . . . . . . Researcher 1 | . . . . . . . . . . . . . . . . 1 . . . Sentry 1 | . . . 1 . . . . . . . . . . . . . . . . Programmer 2 | . . . 1 . . . . . . . . . . . 1 . . . . Artisan 3 | . . 3 . . . . . . . . . . . . . . . . . Subdweller 26 | . . 26 . . . . . . . . . . . . . . . . . Packrat 2 | . . . . . . . . . . . . . 2 . . . . . . Best Kill Streak 5 | . 4 5 3 . . . 2 . . 3 . 1 . . 1 1 . . . Combat Bots Only 4 | . 3 4 2 . . . . . . . . . . . 1 . . . . Max Kills in Single Turn 3 | . 2 3 1 . . . 1 . . 1 . 1 1 . 1 1 . . . Gunslinging . | . . . . . . . . . . . . . . . . . . . . Exploded 3 | . . 3 . . . . . . . . . . . . . . . . . Melee . | . . . . . . . . . . . . . . . . . . . . Uniques/NPCs Destroyed . | . . . . . . . . . . . . . . . . . . . . Combat | -11 -10 -10 -7 -7 -5 -5 -5 -5 -5 -4 -4 -4 -4 -4 -3 -3 -2 -2 -2 -------- Run | Yrd Mat Sub Rec Scr Fac Was Fac Upp Upp Fac Was Fac Upp Upp Res Tes Res Qua Frg Hostile Shots Fired 535 | . 36 113 6 . . . 5 4 . 16 . 32 . 24 26 75 38 31 129 Missed 214 | . 12 35 . . . . 2 1 . 10 . 14 . 16 14 30 21 12 47 Hits 321 | . 24 78 6 . . . 3 3 . 6 . 18 . 8 12 45 17 19 82 Projectile 321 | . 24 78 6 . . . 3 3 . 6 . 18 . 8 12 45 17 19 82 Critical Strikes 15 | . 1 1 . . . . . . . . . 2 . . 1 3 1 2 4 Actively Blocked 2 | . . . . . . . . . . . . . . . . 2 . . . Part Disruptions 2 | . . . . . . . . . . . . 1 . . 1 . . . . Damage Taken 6857 | . 212 1471 94 . 20 . 65 58 . 198 . 367 . 167 256 987 461 560 1941 Core 1685 | . 28 150 30 . 5 . 12 . . . . 21 . . . 82 81 99 1177 Absorbed by Shields . | . . . . . . . . . . . . . . . . . . . . Redirected to Shielding 112 | . . . . . 3 . . . . . . . . . 22 87 . . . Regen/Repaired (Parts) 368 | . . . . . . . . . . 67 . . . . . . . 106 195 Core Remaining (%) 81 | 100 . . . 16 . . . . 98 . . . . 98 . 93 . . . Volleys Fired 273 | . 22 123 16 4 17 . 12 1 3 4 . 6 . . 23 9 2 31 . Largest 2 | . 2 2 2 1 2 . 1 1 1 1 . 1 . . 1 1 1 1 . Hottest 225 | . 70 160 145 30 225 . 90 51 90 90 . 90 . . 90 90 90 90 . Shots Fired 382 | . 44 190 32 4 19 . 12 3 3 4 . 6 . . 23 9 2 31 . Gun 224 | . 44 150 8 4 18 . . . . . . . . . . . . . . Cannon 137 | . . 27 24 . 1 . 12 3 3 4 . 6 . . 21 3 2 31 . Launcher 14 | . . 13 . . . . . . . . . . . . . 1 . . . Special 7 | . . . . . . . . . . . . . . . 2 5 . . . Kinetic 153 | . 22 116 . 4 8 . . 3 . . . . . . . . . . . Thermal 199 | . 22 60 24 . 11 . 12 . 3 4 . 6 . . 21 3 2 31 . Explosive 1 | . . . . . . . . . . . . . . . . 1 . . . Electromagnetic 22 | . . 14 8 . . . . . . . . . . . . . . . . Robot Hit Streak 31 | . 5 31 13 11 2 . 2 . . . . . . . 3 2 . . . Robot Miss Streak 6 | . 3 6 5 . 2 . 1 . . . . . . . 3 1 . . . Penetration Max . | . . . . . . . . . . . . . . . . . . . . Secondary Targets 2 | . . 2 . . . . . . . . . . . . . . . . . Max Gunslinging Chain 1 | . . 1 . . . . . . . . . . . . . . . . . Shots Hit Robots 218 | . 25 116 24 4 3 . 8 . . 5 . 6 11 . 9 7 . . . Core Hits 102 | . 13 62 9 . 2 . 3 . . 2 . 2 3 . 4 2 . . . Critical Kills . | . . . . . . . . . . . . . . . . . . . . Critical Parts Destroyed . | . . . . . . . . . . . . . . . . . . . . Critical Strikes 6 | . 3 1 . . . . 1 . . . . . . . 1 . . . . Burn 3 | . 3 . . . . . . . . . . . . . . . . . . Destroy 1 | . . 1 . . . . . . . . . . . . . . . . . Sever 2 | . . . . . . . 1 . . . . . . . 1 . . . . Melee Attacks 158 | . . . . . . . 38 . . 43 . 24 12 . 21 12 4 1 3 Impact . | . . . . . . . . . . . . . . . . . . . . Slashing 158 | . . . . . . . 38 . . 43 . 24 12 . 21 12 4 1 3 Piercing . | . . . . . . . . . . . . . . . . . . . . Sneak Attacks 17 | . . . . . . . 5 . . 5 . 3 2 . . 2 . . . Combat Hostiles . | . . . . . . . . . . . . . . . . . . . . Follow-up Attacks . | . . . . . . . . . . . . . . . . . . . . Damage Inflicted 7274 | 7 358 3347 659 97 105 . 497 . . 349 . 354 798 . 304 348 . . 51 Guns 2274 | . 351 1653 117 97 56 . . . . . . . . . . . . . . Cannons 1358 | . . 570 521 . . . 67 . . . . . . . 200 . . . . Explosions 1265 | . . 1124 21 . 49 . . . . . . . . . . 71 . . . Melee 2287 | . . . . . . . 405 . . 349 . 354 798 . 104 277 . . . Ramming 90 | 7 7 . . . . . 25 . . . . . . . . . . . 51 Kinetic 2457 | . 180 2141 . 97 39 . . . . . . . . . . . . . . Thermal 2048 | . 171 1051 542 . 17 . 67 . . . . . . . 200 . . . . Explosive 71 | . . . . . . . . . . . . . . . . 71 . . . Electromagnetic 321 | . . 155 117 . 49 . . . . . . . . . . . . . . Impact . | . . . . . . . . . . . . . . . . . . . . Slashing 2287 | . . . . . . . 405 . . 349 . 354 798 . 104 277 . . . Piercing . | . . . . . . . . . . . . . . . . . . . . Highest Corruption 13 | . . . 1 . . 5 6 6 . 2 10 13 13 13 3 5 . 1 8 Average Corruption 4 | . . . 1 . . 5 5 5 . 1 7 10 13 13 2 3 . 1 3 Corruption Purged 6 | . . . . . . . . 6 . . . . . . . . . . . Corruption Blocked . | . . . . . . . . . . . . . . . . . . . . Effects 107 | . . . 8 . . 1 27 13 . 7 3 14 20 1 1 8 . . 4 Message Errors 30 | . . . 4 . . . 7 3 . 3 1 4 5 . . 1 . . 2 Matter Fused 20 | . . . 1 . . . 6 1 . 3 . . 6 . . 2 . . 1 Heat Flow Errors 16 | . . . 1 . . . 4 1 . 1 . 4 2 . . 3 . . . Energy Discharges 12 | . . . . . . 1 3 2 . . 1 2 2 1 . . . . . Parts Rejected 2 | . . . . . . . 1 . . . . . . . 1 . . . . Parts Fused 2 | . . . . . . . . 1 . . . . 1 . . . . . . Data Loss (minor) 15 | . . . . . . . 5 3 . . . 2 3 . . 2 . . . Data Loss (major) 3 | . . . 2 . . . . . . . . . 1 . . . . . . Misfires 2 | . . . . . . . . 2 . . . . . . . . . . . Alerts 3 | . . . . . . . 1 . . . . 1 . . . . . . 1 Misdirections 2 | . . . . . . . . . . . 1 1 . . . . . . . Overload Shots 1 | . . . . . 1 . . . . . . . . . . . . . . Overflow Damage 801 | . . 22 49 . . . 127 . . 107 . 103 315 . 25 53 . . . Projectiles 74 | . . . 49 . . . . . . . . . . . 25 . . . . Explosions 22 | . . 22 . . . . . . . . . . . . . . . . . Melee 705 | . . . . . . . 127 . . 107 . 103 315 . . 53 . . . Knockbacks 1 | . . . . . . . . . . . . . . . . . . . 1 Impact 1 | . . . . . . . . . . . . . . . . . . . 1 Kinetic . | . . . . . . . . . . . . . . . . . . . . Secondary . | . . . . . . . . . . . . . . . . . . . . Self-Inflicted Damage 61 | . . 3 . . 21 . 12 . . . . . . . . . . . 25 Shots 2 | . . 1 . . 1 . . . . . . . . . . . . . . Rammed 4 | . . . . . . . 1 . . . . . . . . . . . 3 Targets Rammed 8 | 1 3 . . . . . 1 . . . . . . . . . . . 3 Kicked 3 | 1 2 . . . . . . . . . . . . . . . . . . Crushed 1 | . 1 . . . . . . . . . . . . . . . . . . Highest Temperature 321 | . 120 84 297 . 285 3 250 176 162 227 . 240 105 5 321 208 . . . Average Temperature 59 | . 30 32 98 . 72 3 73 36 81 55 . 101 22 3 38 56 . . . Received Heat Transfer 642 | . 30 156 18 . . . . 27 . . . 12 . . 12 . 54 9 324 Effects 1 | . . . . . . . 1 . . . . . . . . . . . . Energy Bleed 1 | . . . . . . . 1 . . . . . . . . . . . . Siege Activations . | . . . . . . . . . . . . . . . . . . . . Martial Activations . | . . . . . . . . . . . . . . . . . . . . Shielding Activations . | . . . . . . . . . . . . . . . . . . . . Robots Disrupted . | . . . . . . . . . . . . . . . . . . . . Combat Hostiles . | . . . . . . . . . . . . . . . . . . . . Robots Corrupted 1 | . . . . . . . 1 . . . . . . . . . . . . Combat Hostiles . | . . . . . . . . . . . . . . . . . . . . Parts Fried 4 | . . 1 1 . . . 2 . . . . . . . . . . . . Impact Corruptions 1 | . . . . . . . 1 . . . . . . . . . . . . Robots Melted . | . . . . . . . . . . . . . . . . . . . . Combat Hostiles . | . . . . . . . . . . . . . . . . . . . . Parts Melted 4 | . 2 1 . . . . . . . . . . . . 1 . . . . Heat Transferred 3237 | . 740 1449 752 . 37 . 74 . . . . . . . 185 . . . . Parts Sabotaged . | . . . . . . . . . . . . . . . . . . . . Parts Stolen . | . . . . . . . . . . . . . . . . . . . . Parts Stripped . | . . . . . . . . . . . . . . . . . . . . Power Chain Reactions 2 | . . 1 1 . . . . . . . . . . . . . . . . Alert | -11 -10 -10 -7 -7 -5 -5 -5 -5 -5 -4 -4 -4 -4 -4 -3 -3 -2 -2 -2 ------- Run | Yrd Mat Sub Rec Scr Fac Was Fac Upp Upp Fac Was Fac Upp Upp Res Tes Res Qua Frg Maximum Alert Level 1 | . . . . . . . . . . . . . . . . . . . 1 Low Security (%) 99 | 100 100 . 100 . 100 100 100 . . 100 100 100 . . 100 100 100 100 95 Level 1 . | . . . . . . . . . . . . . . . . . . . 4 Level 2 . | . . . . . . . . . . . . . . . . . . . . Level 3 . | . . . . . . . . . . . . . . . . . . . . Level 4 . | . . . . . . . . . . . . . . . . . . . . Level 5 . | . . . . . . . . . . . . . . . . . . . . High Security . | . . . . . . . . . . . . . . . . . . . . Max Security . | . . . . . . . . . . . . . . . . . . . . Peak Influence 231 | . 130 . 80 . 39 . 38 . . 84 25 56 . . 50 92 37 57 231 Initial 32 | . . . . . . . . . . . 25 3 . . . 21 31 . 32 Average 18 | . 73 . 12 . 9 . 5 . . 14 17 7 . . 10 27 9 25 83 Influence Increases 2922 | . 235 205 283 . 105 . 215 120 . 293 . 110 15 . 276 280 80 306 399 Destroy 0b10 Robot/C 500 | . 160 180 120 . . . . . . . . . . . 20 20 . . . Destroy 0b10 Robot/NC 130 | . 10 . 35 . . . 25 . . 20 . 10 15 . 5 10 . . . Destroy Leader 64 | . 40 10 . . . . 2 . . . . . . . 12 . . . . Allied During Kill 33 | . . . 33 . . . . . . . . . . . . . . . . Successful Hack 268 | . 10 . 26 . 24 . 60 . . 11 . . . . 81 6 47 3 . Disable Machine 375 | . . . 30 . 60 . 30 . . 15 . . . . . 105 . 135 . Destroy Structure 397 | . . . 9 . 6 . 68 . . 82 . 40 . . 68 34 18 63 9 Partial Spotted 120 | . . . . . 15 . . . . . . . . . 15 . 15 30 45 Lose Combat Pursuer 1035 | . 15 15 30 . . . 30 120 . 165 . 60 . . 75 105 . 75 345 Influence Decreases 2701 | . 145 295 283 . 105 . 209 126 . 219 69 115 15 . 238 262 136 248 236 Entered New Map 166 | . . 44 . . . . . 3 . . 49 2 . . . 17 25 . 26 Time Decay 2169 | . 145 201 231 . 105 . 199 123 . 195 20 83 15 . 184 189 111 228 140 Lost Part 220 | . . 50 . . . . . . . . . 30 . . 10 40 . 20 70 Lost Ally 90 | . . . 52 . . . 10 . . 10 . . . . 2 16 . . . Purge Threat 56 | . . . . . . . . . . 14 . . . . 42 . . . . Squads Dispatched 45 | . 3 . . . 5 . 11 . . 12 . 2 . . 7 2 1 1 1 Investigation 23 | . 2 . . . 3 . 8 . . 6 . 1 . . 3 . . . . Extermination 13 | . . . . . 1 . 2 . . 3 . 1 . . 3 1 1 1 . Reinforcement 9 | . 1 . . . 1 . 1 . . 3 . . . . 1 1 . . 1 Assault . | . . . . . . . . . . . . . . . . . . . . Garrison . | . . . . . . . . . . . . . . . . . . . . Intercept . | . . . . . . . . . . . . . . . . . . . . Searches Triggered . | . . . . . . . . . . . . . . . . . . . . Construction Impeded 1 | . . . . . . . . . . . . . . . . . . . 1 Haulers Reinforced . | . . . . . . . . . . . . . . . . . . . . Active Scanning Responses . | . . . . . . . . . . . . . . . . . . . . Cargo Convoy Interrupts . | . . . . . . . . . . . . . . . . . . . . Stealth | -11 -10 -10 -7 -7 -5 -5 -5 -5 -5 -4 -4 -4 -4 -4 -3 -3 -2 -2 -2 --------- Run | Yrd Mat Sub Rec Scr Fac Was Fac Upp Upp Fac Was Fac Upp Upp Res Tes Res Qua Frg Distress Signals 10 | . . . 1 . . . . . . 2 . . . . 1 2 . . 4 Communications Jammed . | . . . . . . . . . . . . . . . . . . . . Distress Signals . | . . . . . . . . . . . . . . . . . . . . Times Spotted 202 | . 11 33 11 . 3 4 9 7 . 12 6 7 . 4 13 20 10 9 43 Peak Tracking Total 20 | . 4 5 5 . 1 5 2 4 . 5 6 5 . 4 4 13 8 5 20 Tactical Retreats 27 | . 1 1 2 . . . 2 2 . 5 . 1 . . 2 2 . 3 6 Traps | -11 -10 -10 -7 -7 -5 -5 -5 -5 -5 -4 -4 -4 -4 -4 -3 -3 -2 -2 -2 ------- Run | Yrd Mat Sub Rec Scr Fac Was Fac Upp Upp Fac Was Fac Upp Upp Res Tes Res Qua Frg Traps Triggered 17 | . 1 1 . . 2 . 1 . . 4 . . . . . 3 1 . 4 Indirectly 1 | . . . . . 1 . . . . . . . . . . . . . . Trap Hack Attempts . | . . . . . . . . . . . . . . . . . . . . Triggered . | . . . . . . . . . . . . . . . . . . . . Disarmed . | . . . . . . . . . . . . . . . . . . . . Reprogrammed . | . . . . . . . . . . . . . . . . . . . . Reused 1 | . . 1 . . . . . . . . . . . . . . . . . Traps Extracted . | . . . . . . . . . . . . . . . . . . . . Installed 2 | . . 2 . . . . . . . . . . . . . . . . . Triggered . | . . . . . . . . . . . . . . . . . . . . Machines | -11 -10 -10 -7 -7 -5 -5 -5 -5 -5 -4 -4 -4 -4 -4 -3 -3 -2 -2 -2 ---------- Run | Yrd Mat Sub Rec Scr Fac Was Fac Upp Upp Fac Was Fac Upp Upp Res Tes Res Qua Frg Machines Disabled 31 | . . 5 2 . 4 . 2 . . 1 . . . . . 8 . 9 . Max in Single Turn 4 | . . 3 1 . 2 . 1 . . 1 . . . . . 4 . 1 . Garrison Access 3 | . . . . . . . . . . 1 . . . . . . 1 1 . Machines Repaired . | . . . . . . . . . . . . . . . . . . . . Machines Dismantled . | . . . . . . . . . . . . . . . . . . . . Machines Sabotaged . | . . . . . . . . . . . . . . . . . . . . Overloaded Fab Kills . | . . . . . . . . . . . . . . . . . . . . Hacking | -11 -10 -10 -7 -7 -5 -5 -5 -5 -5 -4 -4 -4 -4 -4 -3 -3 -2 -2 -2 --------- Run | Yrd Mat Sub Rec Scr Fac Was Fac Upp Upp Fac Was Fac Upp Upp Res Tes Res Qua Frg Machines Accessed 99 | . 2 2 8 4 5 . 20 . 1 14 . 2 1 . 14 7 10 7 2 Terminals 48 | . 2 . 4 . 3 . 8 . 1 5 . 1 . . 4 5 8 5 2 Fabricators 7 | . . . . . 1 . 2 . . 2 . . . . 1 1 . . . Repair Stations 1 | . . . . . . . . . . 1 . . . . . . . . . Recycling Units 22 | . . . 4 . 1 . 8 . . 5 . 1 . . 3 . . . . Scanalyzers 8 | . . . . . . . 2 . . . . . . . 3 1 1 1 . Garrison Access 6 | . . . . . . . . . . 1 . . . . 3 . 1 1 . Total Hacks 267 | . 9 5 16 42 12 . 59 . 1 40 . 2 1 . 35 13 19 11 2 Successful 133 | . 5 5 6 42 3 . 25 . 1 17 . 1 1 . 13 5 7 2 . Failed 133 | . 4 . 10 . 9 . 34 . . 23 . 1 . . 21 8 12 9 2 Catastrophic 28 | . 1 . 2 . 2 . 8 . . 3 . 1 . . 5 3 2 . 1 Database Lockouts 1 | . . . . . . . . . . . . . . . 1 . . . . Manual 106 | . 6 . 5 . 8 . 37 . . 18 . 1 . . 12 7 8 3 1 Terminals 132 | . 9 . 9 . 5 . 27 . 1 26 . 1 . . 16 10 17 9 2 Fabricators 13 | . . . . . 4 . 3 . . 4 . . . . 1 1 . . . Repair Stations 2 | . . . . . . . . . . 2 . . . . . . . . . Recycling Units 42 | . . . 7 . 3 . 20 . . 7 . 1 . . 4 . . . . Scanalyzers 23 | . . . . . . . 9 . . . . . . . 10 2 1 1 . Garrison Access 7 | . . . . . . . . . . 1 . . . . 4 . 1 1 . Terminal Hacks 75 | . 4 5 3 42 . . 4 . 1 6 . . 1 . 5 1 2 1 . Record 40 | . . 4 . 33 . . . . 1 . . . . . 1 . . 1 . Robot Analysis 9 | . . . . 9 . . . . . . . . . . . . . . . Prototype ID Bank 8 | . 3 . 3 . . . 1 . . 1 . . . . . . . . . Open Door 3 | . . . . . . . . . . . . . 1 . . 1 1 . . Branch Access Points 1 | . . . . . . . 1 . . . . . . . . . . . . Terminal Index 1 | . . . . . . . . . . . . . . . . . 1 . . Alert Level 4 | . 1 . . . . . 1 . . 1 . . . . 1 . . . . Unreport Threat 3 | . . . . . . . 1 . . 1 . . . . 1 . . . . Locate Traps 1 | . . . . . . . . . . 1 . . . . . . . . . Recall Investigation 3 | . . . . . . . . . . 2 . . . . 1 . . . . Registered Prototypes 1 | . . . . . . . . . . . . . . . 1 . . . . Proto ID Catalog 1 | . . 1 . . . . . . . . . . . . . . . . . Fabricator Hacks 1 | . . . . . 1 . . . . . . . . . . . . . . Build 1 | . . . . . 1 . . . . . . . . . . . . . . Repair Station Hacks 2 | . . . . . . . . . . 2 . . . . . . . . . Scan Component 1 | . . . . . . . . . . 1 . . . . . . . . . Repair 1 | . . . . . . . . . . 1 . . . . . . . . . Recycling Unit Hacks 5 | . . . 3 . . . 2 . . . . . . . . . . . . Retrieve Matter 1 | . . . . . . . 1 . . . . . . . . . . . . Retrieve Components 4 | . . . 3 . . . 1 . . . . . . . . . . . . Scanalyzer 12 | . . . . . . . 7 . . . . . . . 4 1 . . . Retrieve Study 12 | . . . . . . . 7 . . . . . . . 4 1 . . . Garrison Access Hacks 3 | . . . . . . . . . . 1 . . . . . . 1 1 . Seal Access 3 | . . . . . . . . . . 1 . . . . . . 1 1 . Unauthorized Hacks 35 | . 1 . . . 2 . 12 . . 8 . 1 . . 4 3 4 . . Terminals 17 | . 1 . . . 1 . 4 . . 3 . . . . 2 2 4 . . Assimilate 5 | . . . . . . . 2 . . 1 . . . . . . 2 . . Botnet 11 | . 1 . . . 1 . 2 . . 2 . . . . 2 1 2 . . Disrupt 1 | . . . . . . . . . . . . . . . . 1 . . . Fabricators 1 | . . . . . . . . . . . . . . . . 1 . . . Liberate 1 | . . . . . . . . . . . . . . . . 1 . . . Repair Stations . | . . . . . . . . . . . . . . . . . . . . Recycling Units 17 | . . . . . 1 . 8 . . 5 . 1 . . 2 . . . . Fedlink 17 | . . . . . 1 . 8 . . 5 . 1 . . 2 . . . . Scanalyzers . | . . . . . . . . . . . . . . . . . . . . Garrison Access . | . . . . . . . . . . . . . . . . . . . . Data Cores Recovered . | . . . . . . . . . . . . . . . . . . . . Used . | . . . . . . . . . . . . . . . . . . . . Hacking Detections 70 | . 2 . 7 . 4 . 13 . . 8 . 1 . . 12 6 9 6 2 Full Trace Events 3 | . 1 . . . 1 . . . . . . . . . 1 . . . . Feedback Events . | . . . . . . . . . . . . . . . . . . . . Feedback Blocked . | . . . . . . . . . . . . . . . . . . . . Robot Schematics Acquired 2 | . . . . . . . . . . . . . . . . 2 . . . Robots Built . | . . . . . . . . . . . . . . . . . . . . Authchips . | . . . . . . . . . . . . . . . . . . . . Time . | . . . . . . . . . . . . . . . . . . . . Total Robot Build Rating . | . . . . . . . . . . . . . . . . . . . . Part Schematics Acquired 1 | . . . . . . . . . . . . . . . . 1 . . . Parts Built 2 | . . . . . 2 . . . . . . . . . . . . . . Authchips . | . . . . . . . . . . . . . . . . . . . . Time 46 | . . . . . 46 . . . . . . . . . . . . . . Total Part Build Rating 18 | . . . . . 18 . . . . . . . . . . . . . . Part Studies Acquired 12 | . . . . . . . 7 . . . . . . . 4 1 . . . Parts Repaired 1 | . . . . . . . . . . 1 . . . . . . . . . Time 38 | . . . . . . . . . . 38 . . . . . . . . . Parts Recycled . | . . . . . . . . . . . . . . . . . . . . Recycled Matter . | . . . . . . . . . . . . . . . . . . . . Retrieved Matter . | . . . . . . . . . . . . . . . . . . . . Retrieved Components 1 | . . . 1 . . . . . . . . . . . . . . . . Parts Scanalyzed . | . . . . . . . . . . . . . . . . . . . . Part Schematics Acquired . | . . . . . . . . . . . . . . . . . . . . Parts Damaged . | . . . . . . . . . . . . . . . . . . . . Bothacking | -11 -10 -10 -7 -7 -5 -5 -5 -5 -5 -4 -4 -4 -4 -4 -3 -3 -2 -2 -2 ------------ Run | Yrd Mat Sub Rec Scr Fac Was Fac Upp Upp Fac Was Fac Upp Upp Res Tes Res Qua Frg Used RIF Installer . | . . . . . . . . . . . . . . . . . . . . Robots Hacked 4 | . . . . . . . . . . . . . . . 1 3 . . . Non-combat 1 | . . . . . . . . . . . . . . . . 1 . . . Combat 1 | . . . . . . . . . . . . . . . . 1 . . . Robot Hacks Applied 2 | . . . . . . . . . . . . . . . . 2 . . . parse_system 2 | . . . . . . . . . . . . . . . . 2 . . . Manual 3 | . . . . . . . . . . . . . . . 1 2 . . . Relay Couplers Released . | . . . . . . . . . . . . . . . . . . . . Fabnet Peak Effective % . | . . . . . . . . . . . . . . . . . . . . Robots Rewired 14 | . . . 14 . . . . . . . . . . . . . . . . Allies Hacked . | . . . . . . . . . . . . . . . . . . . . Hacks Repelled . | . . . . . . . . . . . . . . . . . . . . Allies | -11 -10 -10 -7 -7 -5 -5 -5 -5 -5 -4 -4 -4 -4 -4 -3 -3 -2 -2 -2 -------- Run | Yrd Mat Sub Rec Scr Fac Was Fac Upp Upp Fac Was Fac Upp Upp Res Tes Res Qua Frg Total Allies 22 | . . . 14 . . . 2 . . 1 . . . . 1 2 2 . . Largest Group 11 | . . . 11 11 . . 1 . . 1 . . . . 1 1 2 . . Highest-Rated Group 324 | . . . 324 324 . . 26 . . 10 . . . . 45 26 71 . . Highest-Rated Ally 45 | . . . 40 40 . . 26 . . 10 . . . . 45 26 45 . . Total Orders 3 | . . . . 3 . . . . . . . . . . . . . . . STAY 2 | . . . . 2 . . . . . . . . . . . . . . . FOLLOW 1 | . . . . 1 . . . . . . . . . . . . . . . Ally Attacks 29 | . . . 29 . . . . . . . . . . . . . . . . Total Damage 533 | . . . 533 . . . . . . . . . . . . . . . . Kills 6 | . . . 6 . . . . . . . . . . . . . . . . Allies Corrupted . | . . . . . . . . . . . . . . . . . . . . Allies Melted . | . . . . . . . . . . . . . . . . . . . . Intel | -11 -10 -10 -7 -7 -5 -5 -5 -5 -5 -4 -4 -4 -4 -4 -3 -3 -2 -2 -2 ------- Run | Yrd Mat Sub Rec Scr Fac Was Fac Upp Upp Fac Was Fac Upp Upp Res Tes Res Qua Frg Active Infowar (turns) 6516 | . . 131 . 1 315 63 1016 521 69 1079 47 434 424 29 733 441 415 517 281 Optics 6487 | . . 131 . . 287 63 1016 521 69 1079 47 434 424 29 733 441 415 517 281 Sensors 5794 | . . . . . 51 63 1016 521 69 1079 47 430 419 29 728 441 410 491 . Structural 4856 | . . . . 1 273 63 1016 373 69 1079 47 374 364 29 728 440 . . . Cloaking 5385 | . . . . . 296 63 860 521 69 1072 47 430 419 29 728 441 410 . . Robot Analysis Total 9 | . . . . 9 . . . . . . . . . . . . . . . Derelict Logs Recovered 9 | . . 1 . 5 . . . 1 1 . . . 1 . . . . . . Drone Launches . | . . . . . . . . . . . . . . . . . . . . Drone Recoveries . | . . . . . . . . . . . . . . . . . . . . Exploration | -11 -10 -10 -7 -7 -5 -5 -5 -5 -5 -4 -4 -4 -4 -4 -3 -3 -2 -2 -2 ------------- Run | Yrd Mat Sub Rec Scr Fac Was Fac Upp Upp Fac Was Fac Upp Upp Res Tes Res Qua Frg Turns Passed 14833 | 59 339 4080 1288 2680 318 63 1016 521 69 1079 47 434 424 29 733 441 415 517 281 Spaces Moved 15272 | 43 180 2770 731 2018 372 130 1772 551 125 1746 90 544 648 64 1145 509 601 769 464 Core 116 | 15 . . . . . . . . . . . . . . . . . . 101 Treads 471 | . 63 408 . . . . . . . . . . . . . . . . . Legs 145 | 28 117 . . . . . . . . . . . . . . . . . . Wheels 5111 | . . 2362 731 2018 . . . . . . . . . . . . . . . Hover 9429 | . . . . . 372 130 1772 551 125 1746 90 544 648 64 1145 509 601 769 363 Flight . | . . . . . . . . . . . . . . . . . . . . Fastest Speed 45 | 50 120 107 107 95 45 45 45 45 45 45 45 45 45 45 45 45 45 45 49 Average Speed 76 | 95 134 125 134 128 50 45 45 45 45 45 45 45 45 45 45 45 45 45 53 Slowest Speed 240 | 120 160 240 155 140 121 45 45 45 45 121 45 49 49 45 129 45 49 49 200 Overloaded Moves . | . . . . . . . . . . . . . . . . . . . . Propulsion Burnouts . | . . . . . . . . . . . . . . . . . . . . Robots Hopped . | . . . . . . . . . . . . . . . . . . . . Potential Cave-ins . | . . . . . . . . . . . . . . . . . . . . Cave-ins Triggered . | . . . . . . . . . . . . . . . . . . . . Teleports 1 | . . . . . . . . . . . . . . . . . . 1 . Exploration Rate (%) 50 | 4 28 97 98 89 8 84 53 60 20 46 83 13 64 12 47 72 16 81 28 Regions Visited 19 Branch Regions 10 Pre-discovered Areas 10 | . . 2 . 6 . . 1 1 . . . . . . . . . . . Known Exits Taken 10 | . . . . . . . 1 1 1 . . 1 1 1 1 1 1 1 . Unknown Exits Taken 5 | 1 1 1 1 1 . . . . . . . . . . . . . . . Scrap Searched 23 | . . 12 . 3 . . . 3 2 . . . 2 1 . . . . . Spaces Dug 168 | . . 2 . . . . 35 . 3 41 . 22 1 . 30 6 6 19 3 Terrain Destroyed 304 | . . 113 7 . . . 35 . 3 41 . 22 1 . 33 20 6 20 3 Melee 110 | . . . . . . . 26 . . 37 . 16 1 . 18 4 4 1 3 Projectile 68 | . . 4 4 . . . 9 . 3 4 . 6 . . 15 2 2 19 . AOE 126 | . . 109 3 . . . . . . . . . . . . 14 . . . Terrain Rammed . | . . . . . . . . . . . . . . . . . . . . Walls Destroyed . | . . . . . . . . . . . . . . . . . . . . Machines Disabled . | . . . . . . . . . . . . . . . . . . . . Actions | -11 -10 -10 -7 -7 -5 -5 -5 -5 -5 -4 -4 -4 -4 -4 -3 -3 -2 -2 -2 --------- Run | Yrd Mat Sub Rec Scr Fac Was Fac Upp Upp Fac Was Fac Upp Upp Res Tes Res Qua Frg Total 17780 | 58 233 3165 1011 2103 483 133 1922 823 133 1971 95 687 759 63 1307 698 736 904 496 Wait 1430 | . 14 158 41 42 56 4 70 262 4 150 6 106 88 . 83 131 120 80 15 Move 15255 | 42 179 2769 730 2017 372 129 1771 550 124 1746 89 543 647 63 1144 508 600 768 464 Hop . | . . . . . . . . . . . . . . . . . . . . Pick Up 102 | 8 6 30 6 14 10 . 5 2 . 3 . 1 2 . 5 2 3 5 . Fast Attach 42 | 3 . 4 3 5 5 . 2 2 . 1 . . 6 . 4 1 1 5 . Attach 47 | 3 1 6 . 3 11 . 1 . . 4 . 3 . . 5 1 3 3 3 Detach 20 | . . . . . 3 . . . . 5 . 2 . . 2 2 1 1 4 Swap 94 | 1 4 44 4 2 3 . 3 1 2 8 . 1 . . 11 9 . 1 . Drop 121 | . 4 29 14 16 6 . 6 5 . 4 . 1 4 . 9 8 2 9 4 Fire 273 | . 22 123 16 4 17 . 12 1 3 4 . 6 . . 23 9 2 31 . Melee 158 | . . . . . . . 38 . . 43 . 24 12 . 21 12 4 1 3 Ram 4 | . . . . . . . 1 . . . . . . . . . . . 3 Kick 3 | 1 2 . . . . . . . . . . . . . . . . . . Crush 1 | . 1 . . . . . . . . . . . . . . . . . . Escape Stasis 31 | . . . . . . . 13 . . 3 . . . . . 15 . . . Rewire 197 | . . . 197 . . . . . . . . . . . . . . . . Trap 2 | . . 2 . . . . . . . . . . . . . . . . . Miscellaneous . | . . . . . . . . . . . . . . . . . . . . Route ------- -11/Scrapyard -10/Materials (discovered 2 exits: [*Mat] / *Sub) -10/Subcaves (discovered 3 exits: [*Mat x2] / *Rec) -7/Recycling (discovered 2 exits: *Fac / *Scr) -7/Scraptown (discovered 2 exits: *Fac x2) -5/Factory -5/Waste -5/Factory (discovered 4 exits: *Fac x2 / *Upp x2) -5/Upper Caves -5/Upper Caves (discovered 2 exits: *Fac / [Zhi]) -4/Factory (discovered 7 exits: *Res x4 / *Upp / *Ext / Arm) -4/Waste -4/Factory -4/Upper Caves -4/Upper Caves -3/Research (discovered 5 exits: Res x3 / *Tes x2) -3/Testing -2/Research -2/Quarantine (discovered 3 exits: *Acc / [*Sec] / *Frg) -2/Protoforge History --------- Turn | Location | Event 9 | -11/Scrapyard | Discovered new exit (range 14) 60 | -11/Scrapyard | Entered Materials 153 | -10/Materials | Discovered new exit (range 13) 247 | -10/Materials | Discovered new exit (range 16) 329 | -10/Materials | Build established: Mutant 399 | -10/Materials | Entered Subcaves 403 | -10/Subcaves | Learned 2 Materials zone layouts 419 | -10/Subcaves | Ambushed by Subdwellers from Twisted Machinery 753 | -10/Subcaves | Discovered new exit (range 9) 759 | -10/Subcaves | Shifting Twisted Machinery released Mak. Light Armor Plating 780 | -10/Subcaves | Shifting Twisted Machinery released Sub. Machine Gun 820 | -10/Subcaves | A Subdweller sparked back to life 820 | -10/Subcaves | A Subdweller sparked back to life 820 | -10/Subcaves | A Subdweller sparked back to life 849 | -10/Subcaves | Found Prototype Protection 1173 | -10/Subcaves | Discovered new exit (range 14) 1178 | -10/Subcaves | Ambushed by Subdwellers from Twisted Machinery 1241 | -10/Subcaves | Lost 4 parts (2p1n1u) 1500 | -10/Subcaves | Shifting Twisted Machinery released Piercing Trap 1533 | -10/Subcaves | Ambushed by Subdwellers from Twisted Machinery 1655 | -10/Subcaves | Shifting Twisted Machinery released Sub. Power Source 1697 | -10/Subcaves | Shifting Twisted Machinery released Riot Gun 1814 | -10/Subcaves | Discovered new exit (range 13) 1972 | -10/Subcaves | Visited Clippyterm 1975 | -10/Subcaves | Learned location of Extension (-4) 1975 | -10/Subcaves | Learned Factory fabricator intel 2094 | -10/Subcaves | A swath of the cavern ceiling suddenly collapsed 2254 | -10/Subcaves | Visited 4L-MR0's lab 2311 | -10/Subcaves | Identified Gun Armor 2323 | -10/Subcaves | Found Power Bank 2538 | -10/Subcaves | Learned location of Zion (-6) 2538 | -10/Subcaves | Met a Zionite searching for "candidates" 2785 | -10/Subcaves | Build established: Scavenger-Mutant 3207 | -10/Subcaves | Disturbed a concealed Subdweller 3245 | -10/Subcaves | Core integrity fell below 50% 4479 | -10/Subcaves | Entered Recycling 4507 | -7/Recycling | Build established: Mutant 4649 | -7/Recycling | Discovered new exit (range 8) 4683 | -7/Recycling | Scanned before Scraplab entrance 4799 | -7/Recycling | Core integrity fell below 20% 5324 | -7/Recycling | Build established: Commander-Mutant 5730 | -7/Recycling | Entered Scraplab 5740 | -7/Recycling | Discovered new exit (range 2) 5767 | -7/Recycling | Entered Scraptown 5767 | -7/Scraptown | Accompanied by 11 allies 5767 | -7/Scraptown | System corruption cleaned by C-Scrubber 5945 | -7/Scraptown | Scanned Subdweller tech in exchange for log data 5949 | -7/Scraptown | Learned Factory terminal intel 5954 | -7/Scraptown | Learned location of Armory (-4) 5955 | -7/Scraptown | Learned Research emergency access door positions 5957 | -7/Scraptown | Learned Research stockpile data 5971 | -7/Scraptown | Discovered new exit (range 11) 6315 | -7/Scraptown | Visited UFD Registry 6315 | -7/Scraptown | Registered with UFD as "Nulleater" 6404 | -7/Scraptown | Delivered Scrap Shield to a Scientist 6629 | -7/Scraptown | Visited Science Testing Area 6650 | -7/Scraptown | Visited Derelict Rescue Squad 6670 | -7/Scraptown | Visited Junk Repository 6733 | -7/Scraptown | Visited LU-1G1's Boring Crew 6779 | -7/Scraptown | Visited Cartography Club 6834 | -7/Scraptown | Visited A0-MCA Data Center 6842 | -7/Scraptown | Given a B- rating by A0-MCA 6847 | -7/Scraptown | Found A0-MCA's Component Scanner 6873 | -7/Scraptown | Visited Abandonware Association 6888 | -7/Scraptown | Learned abandonware demo "HACKBUD.EXE" 6888 | -7/Scraptown | Learned abandonware demo "KABOOM.EXE" 6913 | -7/Scraptown | Visited Observation Area 6991 | -7/Scraptown | Visited Analyses Database 7221 | -7/Scraptown | Visited Scrap Suit Storage 7303 | -7/Scraptown | Visited Red Mages 7445 | -7/Scraptown | Visited Shadow of the Wyrm 7464 | -7/Scraptown | Visited Cyclists 7476 | -7/Scraptown | Entered Cyclist Reading Room 7500 | -7/Scraptown | Visited Junk Repository 7557 | -7/Scraptown | Visited Fellowship of the Rings 8143 | -7/Scraptown | Learned location of Recycling (-7) 8143 | -7/Scraptown | Learned location of Upper Caves (-5) 8143 | -7/Scraptown | Learned location of Quarantine (-2) 8143 | -7/Scraptown | Learned 12 Materials zone layouts 8143 | -7/Scraptown | Learned 8 Factory zone layouts 8143 | -7/Scraptown | Learned 16 Research zone layouts 8143 | -7/Scraptown | Learned 4 Mines zone layouts 8143 | -7/Scraptown | Learned 20 Lower Caves zone layouts 8143 | -7/Scraptown | Learned 20 Upper Caves zone layouts 8143 | -7/Scraptown | Learned 4 Armory zone layouts 8143 | -7/Scraptown | Learned 24 Upper Caves zone layouts 8143 | -7/Scraptown | Learned location of 1 exit from Upper Caves 8143 | -7/Scraptown | Learned location of 3 exits from Proximity Caves 8177 | -7/Scraptown | Found Deep Structural Scanner 8384 | -7/Scraptown | Met Optimus 8384 | -7/Scraptown | Accepted into 0bPrime 8444 | -7/Scraptown | Discovered new exit (range 3) 8447 | -7/Scraptown | Entered Factory 8447 | -5/Factory | Evolved 10 slots: Power x1, Propulsion x3, Utility x6 8449 | -5/Factory | Loaded intel: 25 terminal locations 8450 | -5/Factory | Loaded intel: 6 fabricator locations 8511 | -5/Factory | Fabricated Cmb. Linear Gravjet (x2) 8648 | -5/Factory | Discovered new exit (range 10) 8714 | -5/Factory | Loaded intel: 8 recycling unit locations 8765 | -5/Factory | Sucked down chute 8765 | -5/Factory | Entered Waste 8769 | -5/Waste | Spotted C-40 Crusher 8777 | -5/Waste | Spotted C-40 Crusher 8780 | -5/Waste | EMP discharged 8809 | -5/Waste | Spotted C-40 Crusher 8813 | -5/Waste | Spotted C-40 Crusher 8813 | -5/Waste | Spotted C-40 Crusher 8817 | -5/Waste | Spotted C-40 Crusher 8818 | -5/Waste | Discovered new exit (range 22) 8827 | -5/Waste | Identified exit to Factory 8828 | -5/Waste | Entered Factory 8849 | -5/Factory | Loaded intel: 8 recycling unit locations 8849 | -5/Factory | Learned location of Protoforge (-2) 9294 | -5/Factory | Build established: Ninja 9326 | -5/Factory | Discovered new exit (range 22) 9667 | -5/Factory | Discovered new exit (range 6) 9669 | -5/Factory | Identified exit to Factory 9685 | -5/Factory | Identified exit to Upper Caves 9844 | -5/Factory | Entered Upper Caves 9845 | -5/Upper Caves | Identified exit to Upper Caves 9846 | -5/Upper Caves | UFD Scientist delivered a prototype 9849 | -5/Upper Caves | Found Enh. Scrap Shield 9935 | -5/Upper Caves | Encountered a Warlord checkpoint 9992 | -5/Upper Caves | Build established: Scientist-Ninja 10365 | -5/Upper Caves | Entered another Upper Caves area 10366 | -5/Upper Caves | Discovered new exit (range 114) 10434 | -5/Upper Caves | Entered Factory 10434 | -4/Factory | Evolved 2 slots: Utility x2 10435 | -4/Factory | Identified exit to Research 10435 | -4/Factory | Identified exit to Armory 10436 | -4/Factory | Discovered new exit (range 10) 10441 | -4/Factory | Identified exit to Upper Caves 10817 | -4/Factory | Loaded intel: 8 recycling unit locations 11220 | -4/Factory | Discovered new exit (range 9) 11226 | -4/Factory | Identified exit to Extension 11378 | -4/Factory | Repaired Imp. Propulsion Shielding 11513 | -4/Factory | Sucked down chute 11513 | -4/Factory | Entered Waste 11522 | -4/Waste | Spotted C-40 Crusher 11528 | -4/Waste | EMP discharged 11528 | -4/Waste | System corruption reached 10% 11541 | -4/Waste | Spotted C-40 Crusher 11543 | -4/Waste | Spotted C-40 Crusher 11545 | -4/Waste | Spotted C-40 Crusher 11545 | -4/Waste | Spotted C-40 Crusher 11546 | -4/Waste | Spotted C-40 Crusher 11549 | -4/Waste | Discovered new exit (range 22) 11559 | -4/Waste | Identified exit to Factory 11560 | -4/Waste | Entered Factory 11627 | -4/Factory | Loaded intel: 7 recycling unit locations 11973 | -4/Factory | Lost 3 parts (1p2n) 11974 | -4/Factory | Found Exp. Signal Interpreter 11989 | -4/Factory | Discovered exit to Upper Caves (range 6) 11994 | -4/Factory | Entered Upper Caves 12004 | -4/Upper Caves | Learned 12 Research zone layouts 12011 | -4/Upper Caves | Found DCF Scrap (14 items) 12216 | -4/Upper Caves | Build established: Ninja 12387 | -4/Upper Caves | Spotted B-86 Titan 12410 | -4/Upper Caves | Discovered new exit (range 12) 12416 | -4/Upper Caves | Identified exit to Upper Caves 12418 | -4/Upper Caves | Entered another Upper Caves area 12418 | -4/Upper Caves | Discovered exit to Research (range 19) 12447 | -4/Upper Caves | Entered Research 12447 | -3/Research | Evolved 2 slots: Propulsion x1, Utility x1 12448 | -3/Research | Identified exit to Testing 12449 | -3/Research | Identified exit to Research 12483 | -3/Research | Found Spectral Analyzer 12574 | -3/Research | Discovered exit to Testing (range 11) 12634 | -3/Research | Loaded intel: 5 recycling unit locations 12870 | -3/Research | Central database locked down 12952 | -3/Research | Spotted B-86 Titan 13130 | -3/Research | Build established: Scientist-Ninja 13180 | -3/Research | Entered Testing 13273 | -3/Testing | Found SHELL Armor 13308 | -3/Testing | Found Imp. Potential Cannon 13498 | -3/Testing | Found 2N-1CE's Frost Array 13529 | -3/Testing | Found Hyp. Multirail 13613 | -3/Testing | Discovered exit to Research (range 15) 13621 | -3/Testing | Entered Research 13621 | -2/Research | Evolved 2 slots: Weapon x2 13622 | -2/Research | Identified exit to Quarantine 13651 | -2/Research | Lost 4 parts (3u1w) 13835 | -2/Research | Found Zero-point Reactor 14022 | -2/Research | P-80 Master assimilated allied Director 9a 14036 | -2/Research | Entered Quarantine 14041 | -2/Quarantine | Found Alien Artifact 14062 | -2/Quarantine | Lost 3 parts (1n2u) 14136 | -2/Quarantine | Found Alien Impact Weapon 14216 | -2/Quarantine | Found Alien Energy Cannon 14308 | -2/Quarantine | Found Alien Reactor 14308 | -2/Quarantine | Identified Matter Drive 14329 | -2/Quarantine | Build established: Scientist-Scout 14332 | -2/Quarantine | Found Alien Artifact 14332 | -2/Quarantine | Identified Core Reset Matrix 14332 | -2/Quarantine | Identified Core Cannon 14332 | -2/Quarantine | Identified Transdimensional Reconstructor 14332 | -2/Quarantine | Identified Core Stripper 14332 | -2/Quarantine | Used Core Reset Matrix 14336 | -2/Quarantine | Detected hypermatrix surge 14336 | -2/Quarantine | Sensed 13 artifacts in vicinity 14400 | -2/Quarantine | Found Sigix Broadsword 14411 | -2/Quarantine | Found Subatomic Replicator 14449 | -2/Quarantine | Discovered new exit (range 3) 14449 | -2/Quarantine | Identified exit to Access 14487 | -2/Quarantine | Warped through subspace 14513 | -2/Quarantine | Spotted Fortress 14547 | -2/Quarantine | Discovered new exit (range 6) 14547 | -2/Quarantine | Discovered new exit (range 6) 14549 | -2/Quarantine | Identified exit to Protoforge 14553 | -2/Quarantine | Entered Protoforge 14554 | -2/Protoforge | Sensed 2 artifacts in vicinity 14565 | -2/Protoforge | Superfortress began startup sequence 14657 | -2/Protoforge | Spotted Hotshot 14658 | -2/Protoforge | Spotted Hotshot 14662 | -2/Protoforge | Spotted Hotshot 14663 | -2/Protoforge | Spotted Hotshot 14722 | -2/Protoforge | Spotted Hotshot 14722 | -2/Protoforge | Spotted Hotshot 14756 | -2/Protoforge | Core integrity fell below 50% 14798 | -2/Protoforge | Spotted Overlord 14799 | -2/Protoforge | Lost 6 parts (3n3u) 14808 | -2/Protoforge | Spotted B-90 Cyclops 14826 | -2/Protoforge | Core integrity fell below 20% 14829 | -2/Protoforge | Spotted AP7-3 14829 | -2/Protoforge | Spotted AP7-3 14834 | -2/Protoforge | Destroyed by AP7-3 with Heavy Quantum Rifle Last Messages --------------- Champion]. 14731_ System corrupted: IFF burst signal emitted. 14732_ K-01 Serf collects debris. 14734_ Slug penetrates Wall. 14735_ A0-MCA's Component Scanner destroyed. 14735_ Critical hit (Burn: +37). 14737_ Slug penetrates Wall. 14758_ Slammed into G-73 Enforcer. 14758_ G-73 Enforcer knocked back. 14759_ Slammed into G-73 Enforcer. 14759_ W-44 Eye sends out distress signal. 14765_ 2N-1CE's Frost Array destroyed. 14767_ Cmb. Linear Gravjet destroyed. 14768_ Slug penetrates Wall. 14768_ Cmb. Linear Gravjet destroyed. 14769_ Dropped Lrg. Storage Unit. 14780_ System corrupted: Matter fused (-5). 14795_ E:OUGEDRIVF,6OHY/K YIGV3>F1A 14799_ W-44 Eye sends out distress signal. Map ----- +----------------------------------------------------+ | ## """""" #???#########????????????????????????? | | ## """""" #?? #????????????????????????? | | ## #?? #????????????????????????? | | ## #? "" #???? ???????????????????? | | ########+##+#? "" " #???? ????????????????? | | # " #???""""" ??????????????? | | ]!! # " " #???"" "" ???????????? | | !![ + #???"" " ???????????? | | !]! # #??? ""???? ???????? | | ########+#### #??? "" ???"?"??????? | | ??# #?? #??? " ??? ? "??????? | | ??# #?? #?? ??? ? ""?????? | | ??# "" #??? #?? ""? " " ""?????? | | ### "" #??? #?? " "" """????? | | / "" #????#########?? """ " """????? | | ### " #???????????????" """ """"" " """????? | | ??# "" #??????????????? "" n " """"???? | | ### "" #?????????????? " """???? | | ## #?????????????? """"??? | | ###########?????????????? """"""" "" """"??? | | #???????????????????????? """ " " """??? | | ?????????????????????###?? " " """?? | | ???????????####+###### ### "" ""?? | | ???????????# / "" "" "" "?? | | ??????????+ w 7 / "" "" " "?????? | | ##?????????# 7 @ "" """ "?????? | | +?????????# ####### ### " " w ? | | ##?????????# #?????###?? " "" """ ?? | | ???????????# #??????????? " " """ "????????? | | #####??????# #??????????? " """ ?????? | | #??????# #???????????? "" " ??? | | #??????# #????????#???" " "???? "??? | | #??????# #?????? #???? ?????? "??? | | " #??????# #???? #???? "" " "????????? | | " #??????# #??"" #?????" "?? " k ??????? | | " #??????# # """ #????? ???" ????? | | " #??????# + """ #??????"" ???? ????? | | #??????# # """ #???????? ???? ????? | | ############ #??"" #?????????"" ???? ?????? | | #???? #??????????" ""??????????? | | #?????? #?????????? "" ?????????? | | """ """ #????????#???????????" "????????? | | """""" """""" #?????????????????????#####???????? | | """""" """""" #??????????????????????????????? | | """""" """""" #??????????????????????????????? | | #??????????????????????????????? | | ####??????????????????????????????? | | #""T""## #?????????????????????????????????? | | #"""""## #?????????????????????????????????? | | ######## #?????????????????????????????????? | +----------------------------------------------------+ Best States ------------- Heat Dissipation 149 Energy Generation 53 Energy Capacity 490 Matter Stores 300 Matter Capacity 300 Sight Range 24 Robot Scan Range 18 Terrain Scan Density 10 Cloak Strength 2 Armor Coverage 800 Propulsion Shielding 66 Evasion (%) 56 Recoil Reduction 2 Offensive Hacking 10 Defensive Hacking 28 Item Schematics ----------------- None Robot Schematics ------------------ None Fabricated ------------ Cmb. Linear Gravjet | x2 | -5/Factory | Preloaded Repaired ---------- Imp. Propulsion Shielding | 33% | -4/Factory Studied --------- None Alien Tech Used ----------------- Matter Drive Core Reset Matrix Sigix Broadsword Transdimensional Reconstructor Achievements -------------- Barbarian Low-level Research Challenges ------------ None Game ------ Seed AccelerationNetworkedEdition Manual? 0 Play Time 02:51:35 Cumulative 433.0 hours Start 2025.12.28 @ 04:10:57 End 2025.12.28 @ 07:08:06 Sessions 1 Manual Loads 0 Difficulty Rogue Special Mode None Game No. 205 Rogue 205 Adventurer 0 Explorer 0 Win Type - Total 13 Types 9/0/2/0/0/0/0/1/0/1 Lore% 84 Gallery% 82 Achievement% 61 Wizard Run 0 Options --------- Layout 1 ASCII 0 Keyboard 0 Movement Mouse Keybinds 0 Fullscreen 1 Font 24/Smallcaps Map View 50x35 Zoom Use 0% Tactical HUD 1 Map Filters NONE Filters NONE Steam 1 RUN: 3fbb16b0-4e56-433b-9ffd-a3b93bc2f65c